[Event "Late-Titled-Tuesday-Blitz-May-14-2024"]
[Site "Chess.com"]
[Date "2024.05.14"]
[Round "5"]
[White "PapaieDudu"]
[Black "Roberz12"]
[Result "0-1"]
[WhiteElo "2381"]
[BlackElo "2576"]
[TimeControl "180+1"]
[EndTime "14:56:53 PDT"]
[Termination "Roberz12 won on time"]

1. Nf3 {[%clk 0:02:59.8]} 1... b6 {[%clk 0:03:00.9]} 2. d4 {[%clk 0:02:59]} 2...
Bb7 {[%clk 0:03:01.3]} 3. c4 {[%clk 0:02:59.1]} 3... g6 {[%clk 0:02:59.2]} 4.
Nc3 {[%clk 0:02:58.9]} 4... f5 {[%clk 0:02:57.7]} 5. e3 {[%clk 0:02:51.3]} 5...
Nf6 {[%clk 0:02:57.2]} 6. Be2 {[%clk 0:02:51.4]} 6... Bg7 {[%clk 0:02:57.1]} 7.
O-O {[%clk 0:02:52]} 7... O-O {[%clk 0:02:56.7]} 8. Rb1 {[%clk 0:02:51.6]} 8...
a5 {[%clk 0:02:56.3]} 9. b3 {[%clk 0:02:51.2]} 9... Ne4 {[%clk 0:02:56.3]} 10.
Bb2 {[%clk 0:02:49.9]} 10... e6 {[%clk 0:02:46.4]} 11. Rc1 {[%clk 0:02:42.7]}
11... d6 {[%clk 0:02:26.2]} 12. d5 {[%clk 0:02:32.8]} 12... e5 {[%clk
0:02:25.4]} 13. Nxe4 {[%clk 0:02:29.8]} 13... fxe4 {[%clk 0:02:25.2]} 14. Nd2
{[%clk 0:02:28.7]} 14... Bc8 {[%clk 0:02:15.2]} 15. Nxe4 {[%clk 0:02:24.5]}
15... Bf5 {[%clk 0:02:13.6]} 16. Ng3 {[%clk 0:02:19.4]} 16... Nd7 {[%clk
0:02:14.1]} 17. e4 {[%clk 0:02:10]} 17... h5 {[%clk 0:02:08.4]} 18. exf5 {[%clk
0:02:05.8]} 18... h4 {[%clk 0:02:07.8]} 19. Ne4 {[%clk 0:02:01]} 19... gxf5
{[%clk 0:02:07.5]} 20. Nd2 {[%clk 0:02:00.8]} 20... Rf7 {[%clk 0:01:54.2]} 21.
f4 {[%clk 0:01:48.6]} 21... Bh6 {[%clk 0:01:31.6]} 22. fxe5 {[%clk 0:01:40.4]}
22... dxe5 {[%clk 0:01:27.1]} 23. Bh5 {[%clk 0:01:27.9]} 23... Rf8 {[%clk
0:01:13.3]} 24. Rc3 {[%clk 0:01:01.5]} 24... Qg5 {[%clk 0:01:07.1]} 25. Nb1
{[%clk 0:00:42.7]} 25... e4 {[%clk 0:00:36]} 26. Kh1 {[%clk 0:00:28.5]} 26... f4
{[%clk 0:00:24.2]} 27. Bg4 {[%clk 0:00:25.9]} 27... Nc5 {[%clk 0:00:23.7]} 28.
Nd2 {[%clk 0:00:21.5]} 28... e3 {[%clk 0:00:21.8]} 29. Nb1 {[%clk 0:00:09.3]}
29... Rae8 {[%clk 0:00:20.3]} 30. Bf3 {[%clk 0:00:08.9]} 30... Nd7 {[%clk
0:00:13.5]} 31. Rc2 {[%clk 0:00:07.2]} 31... Ne5 {[%clk 0:00:13.3]} 32. Qd4
{[%clk 0:00:06.7]} 32... Bg7 {[%clk 0:00:12.7]} 33. Qd1 {[%clk 0:00:06.2]} 33...
Nd7 {[%clk 0:00:09.7]} 34. Nc3 {[%clk 0:00:06.1]} 34... Nc5 {[%clk 0:00:09.1]}
35. Re2 {[%clk 0:00:04.2]} 35... Qg6 {[%clk 0:00:06.3]} 36. Qb1 {[%clk
0:00:03.7]} 36... Qxb1 {[%clk 0:00:05.7]} 37. Nxb1 {[%clk 0:00:04.4]} 37... Bxb2
{[%clk 0:00:04.9]} 38. Rxb2 {[%clk 0:00:04.4]} 38... Nd3 {[%clk 0:00:05.3]} 39.
Re2 {[%clk 0:00:04.2]} 39... a4 {[%clk 0:00:03.8]} 40. Nc3 {[%clk 0:00:04.1]}
40... axb3 {[%clk 0:00:03.8]} 41. axb3 {[%clk 0:00:05]} 41... Ra8 {[%clk
0:00:03.5]} 42. Ne4 {[%clk 0:00:04.4]} 42... Ra3 {[%clk 0:00:03.3]} 43. d6
{[%clk 0:00:04.3]} 43... cxd6 {[%clk 0:00:03.1]} 44. Nxd6 {[%clk 0:00:05.2]}
44... Rxb3 {[%clk 0:00:03.6]} 45. Kg1 {[%clk 0:00:04.2]} 45... Rc3 {[%clk
0:00:03.6]} 46. Bd5+ {[%clk 0:00:04.3]} 46... Kg7 {[%clk 0:00:03.3]} 47. Ne4
{[%clk 0:00:04.4]} 47... Rb3 {[%clk 0:00:03.3]} 48. Ng5 {[%clk 0:00:04.3]} 48...
Rf6 {[%clk 0:00:02.5]} 49. Ne6+ {[%clk 0:00:04.1]} 49... Kh6 {[%clk 0:00:02.1]}
50. Nd4 {[%clk 0:00:04.2]} 50... Rc3 {[%clk 0:00:01.7]} 51. Nf3 {[%clk
0:00:04.5]} 51... Nc1 {[%clk 0:00:01.4]} 52. Ree1 {[%clk 0:00:03.8]} 52... Nd3
{[%clk 0:00:01.2]} 53. Re2 {[%clk 0:00:03.9]} 53... Nc1 {[%clk 0:00:01.7]} 54.
Rb2 {[%clk 0:00:04]} 54... Nb3 {[%clk 0:00:01.9]} 55. Nxh4 {[%clk 0:00:03.4]}
55... Nc5 {[%clk 0:00:01.3]} 56. Nf3 {[%clk 0:00:03.6]} 56... Nd3 {[%clk
0:00:01.1]} 57. Re2 {[%clk 0:00:03]} 57... Nc5 {[%clk 0:00:02]} 0-1

[Event "Late-Titled-Tuesday-Blitz-May-14-2024"]
[Site "Chess.com"]
[Date "2024.05.14"]
[Round "5"]
[White "rikchessmx"]
[Black "marvinguevara"]
[Result "1-0"]
[WhiteElo "2448"]
[BlackElo "2190"]
[TimeControl "180+1"]
[EndTime "14:56:56 PDT"]
[Termination "rikchessmx won on time"]

1. e4 {[%clk 0:02:52.7]} 1... e6 {[%clk 0:02:59.3]} 2. d4 {[%clk 0:02:48.3]}
2... c5 {[%clk 0:02:58.6]} 3. Nc3 {[%clk 0:02:49.2]} 3... cxd4 {[%clk
0:02:58.3]} 4. Qxd4 {[%clk 0:02:49.1]} 4... Nc6 {[%clk 0:02:57.9]} 5. Qe3 {[%clk
0:02:49.5]} 5... Nf6 {[%clk 0:02:57.7]} 6. a3 {[%clk 0:02:45.3]} 6... d5 {[%clk
0:02:56]} 7. exd5 {[%clk 0:02:43.7]} 7... Nxd5 {[%clk 0:02:56]} 8. Nxd5 {[%clk
0:02:43.6]} 8... Qxd5 {[%clk 0:02:56.9]} 9. Nf3 {[%clk 0:02:43.7]} 9... Bc5
{[%clk 0:02:56.7]} 10. Qf4 {[%clk 0:02:37.5]} 10... O-O {[%clk 0:02:54.8]} 11.
Bc4 {[%clk 0:02:35.8]} 11... Qh5 {[%clk 0:02:47]} 12. O-O {[%clk 0:02:33.7]}
12... e5 {[%clk 0:02:46.4]} 13. Qh4 {[%clk 0:02:27.7]} 13... Qg6 {[%clk
0:02:31.5]} 14. Bd3 {[%clk 0:02:14.2]} 14... f5 {[%clk 0:02:25.3]} 15. Qc4+
{[%clk 0:02:04.3]} 15... Be6 {[%clk 0:02:21.2]} 16. Qxc5 {[%clk 0:02:03.6]}
16... e4 {[%clk 0:02:20.7]} 17. Ng5 {[%clk 0:01:57.3]} 17... exd3 {[%clk
0:02:18.3]} 18. Nxe6 {[%clk 0:01:57.1]} 18... Qxe6 {[%clk 0:02:18.8]} 19. cxd3
{[%clk 0:01:57]} 19... Rad8 {[%clk 0:02:16.6]} 20. Qb5 {[%clk 0:01:51.7]} 20...
f4 {[%clk 0:01:42.1]} 21. Qc4 {[%clk 0:01:34.8]} 21... Qxc4 {[%clk 0:01:38.8]}
22. dxc4 {[%clk 0:01:34.8]} 22... Na5 {[%clk 0:01:35.2]} 23. Bd2 {[%clk
0:01:28.4]} 23... Rxd2 {[%clk 0:01:33.3]} 24. c5 {[%clk 0:01:27.4]} 24... Rxb2
{[%clk 0:01:31.5]} 25. Rfe1 {[%clk 0:01:26.7]} 25... h5 {[%clk 0:01:28.3]} 26.
Re5 {[%clk 0:01:26.2]} 26... h4 {[%clk 0:01:27.8]} 27. h3 {[%clk 0:01:25.9]}
27... f3 {[%clk 0:01:26.9]} 28. gxf3 {[%clk 0:01:19.4]} 28... Rxf3 {[%clk
0:01:24.7]} 29. Rf1 {[%clk 0:01:14]} 29... Nc4 {[%clk 0:01:21.7]} 30. Re7 {[%clk
0:01:12.7]} 30... Rxh3 {[%clk 0:01:18]} 31. Kg2 {[%clk 0:01:10.4]} 31... Rxa3
{[%clk 0:01:15.9]} 32. Rd1 {[%clk 0:01:10.2]} 32... Raa2 {[%clk 0:01:10.4]} 33.
Rdd7 {[%clk 0:01:07]} 33... Rxf2+ {[%clk 0:01:08.6]} 34. Kh3 {[%clk 0:01:06.8]}
34... Rh2+ {[%clk 0:01:07.5]} 35. Kg4 {[%clk 0:01:06.5]} 35... Rag2+ {[%clk
0:01:07.5]} 36. Kh5 {[%clk 0:01:06.4]} 36... a5 {[%clk 0:01:01.9]} 37. Rxb7
{[%clk 0:01:06]} 37... a4 {[%clk 0:00:59.8]} 38. c6 {[%clk 0:01:05.8]} 38... Nd6
{[%clk 0:00:51.1]} 39. Rbd7 {[%clk 0:01:05.3]} 39... Nf5 {[%clk 0:00:47.7]} 40.
Re8+ {[%clk 0:00:56.3]} 40... Kh7 {[%clk 0:00:46.7]} 41. c7 {[%clk 0:00:51]}
41... Rc2 {[%clk 0:00:15.5]} 42. c8=Q {[%clk 0:00:47.7]} 42... Rxc8 {[%clk
0:00:14.3]} 43. Rxc8 {[%clk 0:00:48.6]} 43... a3 {[%clk 0:00:14.2]} 44. Ra7
{[%clk 0:00:48.3]} 44... a2 {[%clk 0:00:13.1]} 45. Kg5 {[%clk 0:00:41.5]} 45...
Ne3 {[%clk 0:00:11.3]} 46. Rcc7 {[%clk 0:00:40.7]} 46... Rg2+ {[%clk 0:00:09.6]}
47. Kxh4 {[%clk 0:00:40.4]} 47... Nd5 {[%clk 0:00:06.2]} 48. Rc8 {[%clk
0:00:34.7]} 48... Nb4 {[%clk 0:00:03.9]} 49. Kh3 {[%clk 0:00:33]} 49... Rg1
{[%clk 0:00:03.8]} 50. Rca8 {[%clk 0:00:31.8]} 50... Rb1 {[%clk 0:00:01.5]} 51.
Kg4 {[%clk 0:00:29.6]} 51... Rb3 {[%clk 0:00:02.1]} 52. Kf5 {[%clk 0:00:29.1]}
52... Rb1 {[%clk 0:00:02.8]} 53. Ke6 {[%clk 0:00:28.4]} 53... Kh6 {[%clk
0:00:02]} 54. Kf7 {[%clk 0:00:24.7]} 54... Kg5 {[%clk 0:00:00.2]} 55. Kxg7
{[%clk 0:00:23.7]} 55... Kf5 {[%clk 0:00:00.5]} 56. Rb8 {[%clk 0:00:22]} 56...
Ke4 {[%clk 0:00:01.4]} 57. Rxa2 {[%clk 0:00:21.2]} 57... Nxa2 {[%clk 0:00:01.2]}
58. Rxb1 {[%clk 0:00:20.5]} 58... Nc3 {[%clk 0:00:02.1]} 59. Rb3 {[%clk
0:00:19.6]} 59... Kd3 {[%clk 0:00:02.4]} 60. Kf6 {[%clk 0:00:18.7]} 60... Kc4
{[%clk 0:00:03.3]} 61. Rb8 {[%clk 0:00:17.9]} 61... Ne4+ {[%clk 0:00:03.3]} 62.
Ke5 {[%clk 0:00:17.7]} 62... Nf2 {[%clk 0:00:03.9]} 63. Rd8 {[%clk 0:00:15.6]}
63... Nd3+ {[%clk 0:00:02.1]} 64. Ke4 {[%clk 0:00:15.2]} 64... Nc5+ {[%clk
0:00:01.1]} 65. Ke3 {[%clk 0:00:15.1]} 1-0

[Event "Late-Titled-Tuesday-Blitz-May-14-2024"]
[Site "Chess.com"]
[Date "2024.05.14"]
[Round "5"]
[White "StoreySniper"]
[Black "Crazy_girl99"]
[Result "1-0"]
[WhiteElo "2511"]
[BlackElo "2625"]
[TimeControl "180+1"]
[EndTime "14:56:58 PDT"]
[Termination "StoreySniper won on time"]

1. e4 {[%clk 0:03:00.9]} 1... e5 {[%clk 0:02:58.7]} 2. Nf3 {[%clk 0:03:00.3]}
2... Nc6 {[%clk 0:02:59.4]} 3. Bb5 {[%clk 0:02:59.8]} 3... a6 {[%clk 0:02:59.2]}
4. Ba4 {[%clk 0:02:58.8]} 4... Nf6 {[%clk 0:02:59.5]} 5. d3 {[%clk 0:02:58.5]}
5... b5 {[%clk 0:02:59.1]} 6. Bb3 {[%clk 0:02:58.4]} 6... Bc5 {[%clk 0:02:59.4]}
7. Nc3 {[%clk 0:02:57.4]} 7... d6 {[%clk 0:02:59.6]} 8. Nd5 {[%clk 0:02:57]}
8... h6 {[%clk 0:02:58.7]} 9. c3 {[%clk 0:02:52.4]} 9... Be6 {[%clk 0:02:55.1]}
10. O-O {[%clk 0:02:44.6]} 10... O-O {[%clk 0:02:52.3]} 11. d4 {[%clk
0:02:39.4]} 11... Nxe4 {[%clk 0:02:10.7]} 12. dxc5 {[%clk 0:02:35.7]} 12... Nxc5
{[%clk 0:02:10.1]} 13. Nb4 {[%clk 0:02:29.4]} 13... Nxb4 {[%clk 0:02:04.2]} 14.
cxb4 {[%clk 0:02:20.8]} 14... Nxb3 {[%clk 0:02:02.5]} 15. axb3 {[%clk
0:02:20.6]} 15... f5 {[%clk 0:02:02.8]} 16. Bd2 {[%clk 0:02:02.6]} 16... Qe7
{[%clk 0:02:00.9]} 17. Bc3 {[%clk 0:02:01.8]} 17... Qf7 {[%clk 0:02:00.3]} 18.
Ra3 {[%clk 0:02:01.1]} 18... f4 {[%clk 0:01:48.1]} 19. Nd2 {[%clk 0:01:44.5]}
19... Bd5 {[%clk 0:01:45.2]} 20. f3 {[%clk 0:01:42.3]} 20... Rfe8 {[%clk
0:01:42.5]} 21. Qe2 {[%clk 0:01:40]} 21... c5 {[%clk 0:01:13.2]} 22. bxc5 {[%clk
0:01:36.9]} 22... dxc5 {[%clk 0:01:10.2]} 23. b4 {[%clk 0:01:34.2]} 23... cxb4
{[%clk 0:01:04.4]} 24. Bxb4 {[%clk 0:01:34]} 24... Qc7 {[%clk 0:00:53]} 25. Qf2
{[%clk 0:01:30.6]} 25... a5 {[%clk 0:00:50.3]} 26. Qc5 {[%clk 0:01:21.7]} 26...
Qxc5+ {[%clk 0:00:46.9]} 27. Bxc5 {[%clk 0:01:21.9]} 27... a4 {[%clk 0:00:43.8]}
28. Rd3 {[%clk 0:01:16.4]} 28... Be6 {[%clk 0:00:37.7]} 29. Re1 {[%clk
0:01:14.2]} 29... Bf5 {[%clk 0:00:35]} 30. Rd5 {[%clk 0:01:13.3]} 30... Rad8
{[%clk 0:00:30]} 31. Rexe5 {[%clk 0:01:09]} 31... Rxd5 {[%clk 0:00:19.1]} 32.
Rxd5 {[%clk 0:01:06.2]} 32... g6 {[%clk 0:00:10.8]} 33. Kf2 {[%clk 0:01:03.7]}
33... Kf7 {[%clk 0:00:09.8]} 34. Bd6 {[%clk 0:00:56.5]} 34... Ke6 {[%clk
0:00:09]} 35. Re5+ {[%clk 0:00:55.7]} 35... Kd7 {[%clk 0:00:09.6]} 36. Rxe8
{[%clk 0:00:55.8]} 36... Kxe8 {[%clk 0:00:10.5]} 37. Bxf4 {[%clk 0:00:55.4]}
37... h5 {[%clk 0:00:10.4]} 38. Bd6 {[%clk 0:00:55.1]} 38... Kd7 {[%clk
0:00:10.6]} 39. Bb4 {[%clk 0:00:51.6]} 39... Ke6 {[%clk 0:00:11.2]} 40. Ke3
{[%clk 0:00:50.4]} 40... Kd5 {[%clk 0:00:11.9]} 41. h3 {[%clk 0:00:47.3]} 41...
Bd7 {[%clk 0:00:10.3]} 42. g4 {[%clk 0:00:46.9]} 42... hxg4 {[%clk 0:00:10.2]}
43. hxg4 {[%clk 0:00:44.4]} 43... Be6 {[%clk 0:00:10.1]} 44. g5 {[%clk
0:00:33.6]} 44... Bf5 {[%clk 0:00:10.3]} 45. f4 {[%clk 0:00:33.3]} 45... Be6
{[%clk 0:00:10.6]} 46. Bf8 {[%clk 0:00:29.5]} 46... Bf5 {[%clk 0:00:09.9]} 47.
Bg7 {[%clk 0:00:25.6]} 47... Be6 {[%clk 0:00:07]} 48. Bc3 {[%clk 0:00:25.2]}
48... Bf5 {[%clk 0:00:06.9]} 49. Nf3 {[%clk 0:00:21.9]} 49... Kc4 {[%clk
0:00:06.8]} 50. Nd4 {[%clk 0:00:22.2]} 50... Bd7 {[%clk 0:00:05.8]} 51. f5
{[%clk 0:00:19.4]} 51... gxf5 {[%clk 0:00:05.9]} 52. g6 {[%clk 0:00:19.7]} 52...
Be8 {[%clk 0:00:06.2]} 53. g7 {[%clk 0:00:18.8]} 53... Bf7 {[%clk 0:00:05.9]}
54. Nxf5 {[%clk 0:00:18.2]} 54... Kb3 {[%clk 0:00:05.6]} 55. Nd6 {[%clk
0:00:14.4]} 55... Bg8 {[%clk 0:00:01.7]} 56. Nxb5 {[%clk 0:00:14.3]} 56... Bc4
{[%clk 0:00:01]} 57. Na3 {[%clk 0:00:14.3]} 57... Bg8 {[%clk 0:00:01.4]} 58. Kd4
{[%clk 0:00:14.7]} 58... Bf7 {[%clk 0:00:01.5]} 59. Ke5 {[%clk 0:00:15.3]} 59...
Bg8 {[%clk 0:00:01.9]} 60. Kf6 {[%clk 0:00:15.9]} 60... Bd5 {[%clk 0:00:01.9]}
61. Ke7 {[%clk 0:00:16.5]} 61... Bg8 {[%clk 0:00:01.4]} 62. Kf8 {[%clk
0:00:16.8]} 62... Bh7 {[%clk 0:00:01.6]} 63. Nb5 {[%clk 0:00:15.9]} 63... Kc4
{[%clk 0:00:00.8]} 64. Nd6+ {[%clk 0:00:15.9]} 64... Kb3 {[%clk 0:00:01.7]} 65.
Nf7 {[%clk 0:00:15]} 65... a3 {[%clk 0:00:02.6]} 66. bxa3 {[%clk 0:00:13.5]}
66... Kxc3 {[%clk 0:00:03.1]} 67. Ng5 {[%clk 0:00:13.5]} 67... Bg6 {[%clk
0:00:01.5]} 68. g8=Q {[%clk 0:00:13.8]} 68... Bd3 {[%clk 0:00:00.4]} 69. Qa2
{[%clk 0:00:13.2]} 1-0

[Event "Late-Titled-Tuesday-Blitz-May-14-2024"]
[Site "Chess.com"]
[Date "2024.05.14"]
[Round "5"]
[White "Aygehovit1992"]
[Black "maximnovik"]
[Result "0-1"]
[WhiteElo "2839"]
[BlackElo "2592"]
[TimeControl "180+1"]
[EndTime "14:56:59 PDT"]
[Termination "maximnovik won by resignation"]

1. e4 {[%clk 0:03:00.9]} 1... e5 {[%clk 0:02:54.9]} 2. Nf3 {[%clk 0:03:00.1]}
2... Nc6 {[%clk 0:02:54.6]} 3. Bb5 {[%clk 0:03:00.8]} 3... a6 {[%clk 0:02:54.4]}
4. Ba4 {[%clk 0:03:01.2]} 4... Nf6 {[%clk 0:02:54.5]} 5. Nc3 {[%clk 0:03:01.4]}
5... b5 {[%clk 0:02:50.1]} 6. Bb3 {[%clk 0:03:01.3]} 6... Be7 {[%clk 0:02:49.6]}
7. d3 {[%clk 0:03:00]} 7... O-O {[%clk 0:02:49.2]} 8. a3 {[%clk 0:03:00]} 8...
d6 {[%clk 0:02:45.4]} 9. h3 {[%clk 0:02:59.6]} 9... Be6 {[%clk 0:02:40.9]} 10.
Nd5 {[%clk 0:02:53.8]} 10... Bxd5 {[%clk 0:02:37.7]} 11. exd5 {[%clk 0:02:54]}
11... Nb8 {[%clk 0:02:34.7]} 12. Nh4 {[%clk 0:02:30]} 12... Re8 {[%clk
0:02:29.7]} 13. Nf5 {[%clk 0:02:29.3]} 13... Bf8 {[%clk 0:02:29.5]} 14. Bg5
{[%clk 0:02:28.3]} 14... h6 {[%clk 0:02:14.6]} 15. Bh4 {[%clk 0:02:27]} 15...
Nbd7 {[%clk 0:01:29.5]} 16. O-O {[%clk 0:02:27.1]} 16... Nc5 {[%clk 0:01:26.6]}
17. Ba2 {[%clk 0:02:26.4]} 17... g6 {[%clk 0:01:19]} 18. Ne3 {[%clk 0:02:24.3]}
18... Bg7 {[%clk 0:01:16.6]} 19. Qf3 {[%clk 0:02:22.4]} 19... g5 {[%clk
0:01:12.2]} 20. Bg3 {[%clk 0:02:20.3]} 20... e4 {[%clk 0:01:13.1]} 21. dxe4
{[%clk 0:02:18.9]} 21... Nfxe4 {[%clk 0:01:13.2]} 22. Rad1 {[%clk 0:01:54.9]}
22... Bxb2 {[%clk 0:01:10.7]} 23. Nf5 {[%clk 0:01:55]} 23... Bg7 {[%clk
0:00:58.8]} 24. c4 {[%clk 0:01:40.4]} 24... Qf6 {[%clk 0:00:55.9]} 25. cxb5
{[%clk 0:01:19.9]} 25... axb5 {[%clk 0:00:55.8]} 26. Bb1 {[%clk 0:01:20.4]}
26... Nc3 {[%clk 0:00:46.3]} 27. Rde1 {[%clk 0:01:15.5]} 27... Kf8 {[%clk
0:00:21.4]} 28. Kh2 {[%clk 0:00:49.3]} 28... Rxe1 {[%clk 0:00:21]} 29. Rxe1
{[%clk 0:00:50.2]} 29... Rxa3 {[%clk 0:00:20.6]} 30. Nxd6 {[%clk 0:00:35.8]}
30... cxd6 {[%clk 0:00:17.8]} 31. Qxf6 {[%clk 0:00:35.7]} 31... Bxf6 {[%clk
0:00:17.7]} 32. Bxd6+ {[%clk 0:00:36.6]} 32... Kg7 {[%clk 0:00:17.9]} 33. Bxc5
{[%clk 0:00:36.8]} 33... Ra1 {[%clk 0:00:17.7]} 34. d6 {[%clk 0:00:24.5]} 34...
Rxb1 {[%clk 0:00:17.8]} 35. Re8 {[%clk 0:00:18.2]} 35... Rd1 {[%clk 0:00:16.8]}
36. Rc8 {[%clk 0:00:15.3]} 36... Be5+ {[%clk 0:00:16.7]} 37. g3 {[%clk
0:00:15.3]} 37... Ne4 {[%clk 0:00:16.8]} 38. Bb4 {[%clk 0:00:04.1]} 38... Bxd6
{[%clk 0:00:16.7]} 39. Bxd6 {[%clk 0:00:03.8]} 39... Rxd6 {[%clk 0:00:16.6]} 40.
Rb8 {[%clk 0:00:04.7]} 40... Rd5 {[%clk 0:00:16.6]} 41. Kg2 {[%clk 0:00:04.6]}
41... Nf6 {[%clk 0:00:16.8]} 42. Kf3 {[%clk 0:00:04.7]} 42... Nd7 {[%clk
0:00:17]} 43. Rb7 {[%clk 0:00:04.7]} 43... Kf6 {[%clk 0:00:17.1]} 44. Kg4 {[%clk
0:00:04.8]} 44... Ke6 {[%clk 0:00:17.2]} 45. Kh5 {[%clk 0:00:05.1]} 45... Kd6
{[%clk 0:00:17.2]} 46. Kxh6 {[%clk 0:00:05.6]} 46... Kc6 {[%clk 0:00:18.1]} 47.
Ra7 {[%clk 0:00:05.8]} 47... b4 {[%clk 0:00:18.6]} 48. Kg7 {[%clk 0:00:05.9]}
48... b3 {[%clk 0:00:18.7]} 49. Ra1 {[%clk 0:00:05.5]} 49... b2 {[%clk
0:00:17.9]} 50. Rb1 {[%clk 0:00:05.3]} 50... Rd2 {[%clk 0:00:18.5]} 51. f4
{[%clk 0:00:02.6]} 51... gxf4 {[%clk 0:00:18.6]} 52. gxf4 {[%clk 0:00:03.5]}
52... f5 {[%clk 0:00:18.8]} 53. h4 {[%clk 0:00:03.8]} 53... Nc5 {[%clk
0:00:18.1]} 54. h5 {[%clk 0:00:04.3]} 54... Nd3 {[%clk 0:00:19]} 55. h6 {[%clk
0:00:04.5]} 55... Rg2+ {[%clk 0:00:19.1]} 56. Kf7 {[%clk 0:00:04.4]} 56... Rh2
{[%clk 0:00:19.1]} 57. Kg7 {[%clk 0:00:04.2]} 57... Nxf4 {[%clk 0:00:19.5]} 58.
h7 {[%clk 0:00:04.6]} 58... Nd3 {[%clk 0:00:19.6]} 59. h8=Q {[%clk 0:00:04.1]}
59... Rxh8 {[%clk 0:00:19.6]} 60. Kxh8 {[%clk 0:00:05]} 60... f4 {[%clk
0:00:19.5]} 61. Kg7 {[%clk 0:00:05.9]} 61... Kd5 {[%clk 0:00:20.1]} 62. Kf6
{[%clk 0:00:05.4]} 62... Ke4 {[%clk 0:00:21]} 63. Kg5 {[%clk 0:00:05.9]} 63...
f3 {[%clk 0:00:21.9]} 64. Kg4 {[%clk 0:00:06.3]} 64... f2 {[%clk 0:00:22.5]} 65.
Kg3 {[%clk 0:00:06.6]} 65... Ke3 {[%clk 0:00:23.4]} 66. Kg2 {[%clk 0:00:06.8]}
66... Kd2 {[%clk 0:00:23.8]} 67. Rf1 {[%clk 0:00:06.8]} 67... Kc2 {[%clk
0:00:24.3]} 68. Kf3 {[%clk 0:00:06]} 68... b1=Q {[%clk 0:00:24.8]} 69. Rxb1
{[%clk 0:00:05.8]} 69... Kxb1 {[%clk 0:00:25.2]} 70. Ke2 {[%clk 0:00:06.7]}
70... Kc2 {[%clk 0:00:25.5]} 71. Kf1 {[%clk 0:00:05.7]} 71... Kd2 {[%clk
0:00:26.4]} 0-1

[Event "Late-Titled-Tuesday-Blitz-May-14-2024"]
[Site "Chess.com"]
[Date "2024.05.14"]
[Round "5"]
[White "bobo_panda"]
[Black "becemix"]
[Result "1/2-1/2"]
[WhiteElo "2442"]
[BlackElo "2595"]
[TimeControl "180+1"]
[EndTime "14:56:59 PDT"]
[Termination "Game drawn by repetition"]

1. e4 {[%clk 0:03:00.9]} 1... c5 {[%clk 0:02:58.9]} 2. Nf3 {[%clk 0:03:01]} 2...
d6 {[%clk 0:02:59.2]} 3. d4 {[%clk 0:03:01.5]} 3... cxd4 {[%clk 0:03:00.1]} 4.
Nxd4 {[%clk 0:03:02.1]} 4... Nf6 {[%clk 0:03:00.4]} 5. Nc3 {[%clk 0:03:02.5]}
5... a6 {[%clk 0:03:00.8]} 6. h3 {[%clk 0:03:02.2]} 6... e5 {[%clk 0:03:00.5]}
7. Nde2 {[%clk 0:03:02.6]} 7... h5 {[%clk 0:03:00.9]} 8. Bg5 {[%clk 0:03:03.2]}
8... Nbd7 {[%clk 0:03:00.1]} 9. Ng3 {[%clk 0:03:01.6]} 9... b5 {[%clk 0:02:26]}
10. Nf5 {[%clk 0:02:44.6]} 10... Qc7 {[%clk 0:02:25.3]} 11. Be2 {[%clk
0:02:40.1]} 11... g6 {[%clk 0:02:25.2]} 12. Ne3 {[%clk 0:02:36.9]} 12... Bb7
{[%clk 0:02:22.7]} 13. Ncd5 {[%clk 0:02:35.9]} 13... Nxd5 {[%clk 0:02:19.6]} 14.
Nxd5 {[%clk 0:02:32.3]} 14... Bxd5 {[%clk 0:02:16.8]} 15. exd5 {[%clk
0:02:33.2]} 15... Rc8 {[%clk 0:02:11.8]} 16. c3 {[%clk 0:02:32.8]} 16... Be7
{[%clk 0:02:08.7]} 17. Bxe7 {[%clk 0:02:29.3]} 17... Kxe7 {[%clk 0:02:09.6]} 18.
O-O {[%clk 0:02:29.6]} 18... Kf6 {[%clk 0:02:04.8]} 19. f4 {[%clk 0:02:29.6]}
19... Qc5+ {[%clk 0:02:04.4]} 20. Kh1 {[%clk 0:02:29.2]} 20... exf4 {[%clk
0:02:04.6]} 21. Rxf4+ {[%clk 0:02:30.1]} 21... Kg7 {[%clk 0:02:05]} 22. Qd2
{[%clk 0:02:26]} 22... Ne5 {[%clk 0:02:00.9]} 23. Raf1 {[%clk 0:02:26.2]} 23...
f5 {[%clk 0:01:51.7]} 24. R4f2 {[%clk 0:02:20]} 24... Ng4 {[%clk 0:01:43.1]} 25.
Rxf5 {[%clk 0:02:06.7]} 25... Qe3 {[%clk 0:01:19.4]} 26. Rf7+ {[%clk 0:02:00.1]}
26... Kh6 {[%clk 0:01:18.7]} 27. Qxe3+ {[%clk 0:01:56.5]} 27... Nxe3 {[%clk
0:01:18.5]} 28. R1f6 {[%clk 0:01:57.2]} 28... Rcd8 {[%clk 0:00:52.1]} 29. Bd3
{[%clk 0:01:56.6]} 29... Rhg8 {[%clk 0:00:52.2]} 30. Be4 {[%clk 0:01:44.1]}
30... Rde8 {[%clk 0:00:43.6]} 31. Re6 {[%clk 0:01:31]} 31... Rxe6 {[%clk
0:00:14.5]} 32. dxe6 {[%clk 0:01:31.9]} 32... d5 {[%clk 0:00:15]} 33. Bd3 {[%clk
0:01:28]} 33... Nc4 {[%clk 0:00:11.5]} 34. Bxc4 {[%clk 0:01:19.9]} 34... dxc4
{[%clk 0:00:11.2]} 35. Ra7 {[%clk 0:01:19.6]} 35... Rf8 {[%clk 0:00:11.3]} 36.
Kg1 {[%clk 0:01:18.6]} 36... Rf5 {[%clk 0:00:09.9]} 37. Rxa6 {[%clk 0:01:18.6]}
37... Re5 {[%clk 0:00:10.2]} 38. Kf2 {[%clk 0:01:17.8]} 38... Kg5 {[%clk
0:00:10.4]} 39. Kf3 {[%clk 0:01:17.6]} 39... Kf6 {[%clk 0:00:10.6]} 40. e7+
{[%clk 0:01:15.6]} 40... Kxe7 {[%clk 0:00:10.3]} 41. Rxg6 {[%clk 0:01:16.1]}
41... Rd5 {[%clk 0:00:10]} 42. Ke3 {[%clk 0:01:12.4]} 42... Rd3+ {[%clk
0:00:10.1]} 43. Ke2 {[%clk 0:01:12.7]} 43... Rd5 {[%clk 0:00:10.5]} 44. Rg3
{[%clk 0:01:11]} 44... Kd6 {[%clk 0:00:09.4]} 45. Re3 {[%clk 0:01:09]} 45... Kc5
{[%clk 0:00:09.4]} 46. g4 {[%clk 0:01:06.6]} 46... hxg4 {[%clk 0:00:09.2]} 47.
hxg4 {[%clk 0:01:07.5]} 47... b4 {[%clk 0:00:07.6]} 48. cxb4+ {[%clk 0:00:53.5]}
48... Kxb4 {[%clk 0:00:08.5]} 49. Kf3 {[%clk 0:00:53.9]} 49... Rd2 {[%clk
0:00:07.4]} 50. Re2 {[%clk 0:00:54]} 50... Rd3+ {[%clk 0:00:06.8]} 51. Kf4
{[%clk 0:00:54.1]} 51... Rd4+ {[%clk 0:00:06.8]} 52. Kf5 {[%clk 0:00:53.9]}
52... Rd1 {[%clk 0:00:07]} 53. g5 {[%clk 0:00:53.9]} 53... Rf1+ {[%clk
0:00:07.3]} 54. Kg6 {[%clk 0:00:54.1]} 54... Ra1 {[%clk 0:00:07.7]} 55. a3+
{[%clk 0:00:51.6]} 55... Kb3 {[%clk 0:00:08]} 56. Kh7 {[%clk 0:00:49.7]} 56...
Rh1+ {[%clk 0:00:08.4]} 57. Kg7 {[%clk 0:00:49.6]} 57... Rb1 {[%clk 0:00:08.8]}
58. g6 {[%clk 0:00:37.1]} 58... Rxb2 {[%clk 0:00:08.9]} 59. Re3+ {[%clk
0:00:27.7]} 59... c3 {[%clk 0:00:06.6]} 60. Kf7 {[%clk 0:00:26.1]} 60... Rf2+
{[%clk 0:00:06.7]} 61. Ke7 {[%clk 0:00:26.1]} 61... Rg2 {[%clk 0:00:06.9]} 62.
Kf7 {[%clk 0:00:25.4]} 62... Kb2 {[%clk 0:00:07.3]} 63. g7 {[%clk 0:00:25.1]}
63... c2 {[%clk 0:00:07.6]} 64. Re1 {[%clk 0:00:18.3]} 64... Rf2+ {[%clk
0:00:07.7]} 65. Ke7 {[%clk 0:00:14.3]} 65... Rg2 {[%clk 0:00:08]} 66. Kf7 {[%clk
0:00:13.3]} 66... Rf2+ {[%clk 0:00:07.8]} 67. Ke7 {[%clk 0:00:13.7]} 67... Rg2
{[%clk 0:00:07.9]} 68. Kf7 {[%clk 0:00:14.3]} 1/2-1/2